Workbook

Sheet Map
C2: =D26 -> United states of America
D26: United states of America | F26: =MATCH(D26,{"United states of America","Population","Area","Population / area"},0)*2 -> 2

Sheet Table
D1: State | E1: Column1 | F1: Population | G1: % | H1: Area sq km | I1: %2 | J1: Pop / km | K1: 3%
D2: California | E2: 0.4 | F2: 38041430 | G2: =1-(Table1[[#This Row],[Population]]/MAX(Table1[Population])*0.5+0.5) -> 0 | H2: 423968 | I2: =1-(Table1[[#This Row],[Area sq km]]/MAX(Table1[Area sq km])*0.5+0.5) -> 0.3765995248 | J2: =Table1[[#This Row],[Population]]/Table1[[#This Row],[Area sq km]] -> 89.72712563 | K2: =1-(Table1[[#This Row],[Pop / km]]/MAX(Table1[Pop / km])*0.5+0.5) -> 0.385687517
D3: Texas | E3: 0.4 | F3: 26059203 | G3: =1-(Table1[[#This Row],[Population]]/MAX(Table1[Population])*0.5+0.5) -> 0.1574891769 | H3: 696241 | I3: =1-(Table1[[#This Row],[Area sq km]]/MAX(Table1[Area sq km])*0.5+0.5) -> 0.2973515211 | J3: =Table1[[#This Row],[Population]]/Table1[[#This Row],[Area sq km]] -> 37.42842349 | K3: =1-(Table1[[#This Row],[Pop / km]]/MAX(Table1[Pop / km])*0.5+0.5) -> 0.4523161364
D4: New York | E4: 0.4 | F4: 19570261 | G4: =1-(Table1[[#This Row],[Population]]/MAX(Table1[Population])*0.5+0.5) -> 0.2427770065 | H4: 141325 | I4: =1-(Table1[[#This Row],[Area sq km]]/MAX(Table1[Area sq km])*0.5+0.5) -> 0.4588658291 | J4: =Table1[[#This Row],[Population]]/Table1[[#This Row],[Area sq km]] -> 138.4769927 | K4: =1-(Table1[[#This Row],[Pop / km]]/MAX(Table1[Pop / km])*0.5+0.5) -> 0.3235801185
D5: Florida | E5: 0.4 | F5: 19317568 | G5: =1-(Table1[[#This Row],[Population]]/MAX(Table1[Population])*0.5+0.5) -> 0.2460982934 | H5: 170305 | I5: =1-(Table1[[#This Row],[Area sq km]]/MAX(Table1[Area sq km])*0.5+0.5) -> 0.4504308864 | J5: =Table1[[#This Row],[Population]]/Table1[[#This Row],[Area sq km]] -> 113.4292475 | K5: =1-(Table1[[#This Row],[Pop / km]]/MAX(Table1[Pop / km])*0.5+0.5) -> 0.3554909808
D6: Illinois | E6: 0.4 | F6: 12875255 | G6: =1-(Table1[[#This Row],[Population]]/MAX(Table1[Population])*0.5+0.5) -> 0.3307732517 | H6: 149997 | I6: =1-(Table1[[#This Row],[Area sq km]]/MAX(Table1[Area sq km])*0.5+0.5) -> 0.4563417496 | J6: =Table1[[#This Row],[Population]]/Table1[[#This Row],[Area sq km]] -> 85.83675007 | K6: =1-(Table1[[#This Row],[Pop / km]]/MAX(Table1[Pop / km])*0.5+0.5) -> 0.3906438609
D7: Pennsylvania | E7: 0.4 | F7: 12763536 | G7: =1-(Table1[[#This Row],[Population]]/MAX(Table1[Population])*0.5+0.5) -> 0.3322416376 | H7: 119282 | I7: =1-(Table1[[#This Row],[Area sq km]]/MAX(Table1[Area sq km])*0.5+0.5) -> 0.4652816828 | J7: =Table1[[#This Row],[Population]]/Table1[[#This Row],[Area sq km]] -> 107.0030348 | K7: =1-(Table1[[#This Row],[Pop / km]]/MAX(Table1[Pop / km])*0.5+0.5) -> 0.3636779847
D8: Ohio | E8: 0.4 | F8: 11544225 | G8: =1-(Table1[[#This Row],[Population]]/MAX(Table1[Population])*0.5+0.5) -> 0.3482677307 | H8: 116096 | I8: =1-(Table1[[#This Row],[Area sq km]]/MAX(Table1[Area sq km])*0.5+0.5) -> 0.4662090026 | J8: =Table1[[#This Row],[Population]]/Table1[[#This Row],[Area sq km]] -> 99.43688844 | K8: =1-(Table1[[#This Row],[Pop / km]]/MAX(Table1[Pop / km])*0.5+0.5) -> 0.3733172657
D9: Georgia | E9: 0.4 | F9: 9919945 | G9: =1-(Table1[[#This Row],[Population]]/MAX(Table1[Population])*0.5+0.5) -> 0.3696165602 | H9: 153910 | I9: =1-(Table1[[#This Row],[Area sq km]]/MAX(Table1[Area sq km])*0.5+0.5) -> 0.4552028286 | J9: =Table1[[#This Row],[Population]]/Table1[[#This Row],[Area sq km]] -> 64.45289455 | K9: =1-(Table1[[#This Row],[Pop / km]]/MAX(Table1[Pop / km])*0.5+0.5) -> 0.4178869226
D10: Michigan | E10: 0.4 | F10: 9883360 | G10: =1-(Table1[[#This Row],[Population]]/MAX(Table1[Population])*0.5+0.5) -> 0.3700974175 | H10: 250493 | I10: =1-(Table1[[#This Row],[Area sq km]]/MAX(Table1[Area sq km])*0.5+0.5) -> 0.4270913011 | J10: =Table1[[#This Row],[Population]]/Table1[[#This Row],[Area sq km]] -> 39.45563349 | K10: =1-(Table1[[#This Row],[Pop / km]]/MAX(Table1[Pop / km])*0.5+0.5) -> 0.449733468
D11: North Carolina | E11: 0.4 | F11: 9752073 | G11: =1-(Table1[[#This Row],[Population]]/MAX(Table1[Population])*0.5+0.5) -> 0.3718229967 | H11: 139988 | I11: =1-(Table1[[#This Row],[Area sq km]]/MAX(Table1[Area sq km])*0.5+0.5) -> 0.4592549774 | J11: =Table1[[#This Row],[Population]]/Table1[[#This Row],[Area sq km]] -> 69.66363545 | K11: =1-(Table1[[#This Row],[Pop / km]]/MAX(Table1[Pop / km])*0.5+0.5) -> 0.4112484315
D12: New Jersey | E12: 0.4 | F12: 8864590 | G12: =1-(Table1[[#This Row],[Population]]/MAX(Table1[Population])*0.5+0.5) -> 0.383487687 | H12: 22587 | I12: =1-(Table1[[#This Row],[Area sq km]]/MAX(Table1[Area sq km])*0.5+0.5) -> 0.4934258092 | J12: =Table1[[#This Row],[Population]]/Table1[[#This Row],[Area sq km]] -> 392.4642493 | K12: =1-(Table1[[#This Row],[Pop / km]]/MAX(Table1[Pop / km])*0.5+0.5) -> 0
D13: Virginia | E13: 0.4 | F13: 8185867 | G13: =1-(Table1[[#This Row],[Population]]/MAX(Table1[Population])*0.5+0.5) -> 0.3924085267 | H13: 110784 | I13: =1-(Table1[[#This Row],[Area sq km]]/MAX(Table1[Area sq km])*0.5+0.5) -> 0.4677551177 | J13: =Table1[[#This Row],[Population]]/Table1[[#This Row],[Area sq km]] -> 73.89033615 | K13: =1-(Table1[[#This Row],[Pop / km]]/MAX(Table1[Pop / km])*0.5+0.5) -> 0.4058636089
D14: Washington | E14: 0.4 | F14: 6897012 | G14: =1-(Table1[[#This Row],[Population]]/MAX(Table1[Population])*0.5+0.5) -> 0.4093486759 | H14: 184666 | I14: =1-(Table1[[#This Row],[Area sq km]]/MAX(Table1[Area sq km])*0.5+0.5) -> 0.446250962 | J14: =Table1[[#This Row],[Population]]/Table1[[#This Row],[Area sq km]] -> 37.34857527 | K14: =1-(Table1[[#This Row],[Pop / km]]/MAX(Table1[Pop / km])*0.5+0.5) -> 0.4524178631
D15: Massachusetts | E15: 0.4 | F15: 6646144 | G15: =1-(Table1[[#This Row],[Population]]/MAX(Table1[Population])*0.5+0.5) -> 0.4126459757 | H15: 27335 | I15: =1-(Table1[[#This Row],[Area sq km]]/MAX(Table1[Area sq km])*0.5+0.5) -> 0.4920438524 | J15: =Table1[[#This Row],[Population]]/Table1[[#This Row],[Area sq km]] -> 243.1367843 | K15: =1-(Table1[[#This Row],[Pop / km]]/MAX(Table1[Pop / km])*0.5+0.5) -> 0.1902433983
D16: Arizona | E16: 0.4 | F16: 6553255 | G16: =1-(Table1[[#This Row],[Population]]/MAX(Table1[Population])*0.5+0.5) -> 0.4138668683 | H16: 295254 | I16: =1-(Table1[[#This Row],[Area sq km]]/MAX(Table1[Area sq km])*0.5+0.5) -> 0.4140631276 | J16: =Table1[[#This Row],[Population]]/Table1[[#This Row],[Area sq km]] -> 22.19531319 | K16: =1-(Table1[[#This Row],[Pop / km]]/MAX(Table1[Pop / km])*0.5+0.5) -> 0.4717231401
D17: Indiana | E17: 0.4 | F17: 6537334 | G17: =1-(Table1[[#This Row],[Population]]/MAX(Table1[Population])*0.5+0.5) -> 0.414076127 | H17: 94322 | I17: =1-(Table1[[#This Row],[Area sq km]]/MAX(Table1[Area sq km])*0.5+0.5) -> 0.472546561 | J17: =Table1[[#This Row],[Population]]/Table1[[#This Row],[Area sq km]] -> 69.30868726 | K17: =1-(Table1[[#This Row],[Pop / km]]/MAX(Table1[Pop / km])*0.5+0.5) -> 0.4117006359
D18: Tennessee | E18: 0.4 | F18: 6456243 | G18: =1-(Table1[[#This Row],[Population]]/MAX(Table1[Population])*0.5+0.5) -> 0.4151419518 | H18: 109150 | I18: =1-(Table1[[#This Row],[Area sq km]]/MAX(Table1[Area sq km])*0.5+0.5) -> 0.4682307111 | J18: =Table1[[#This Row],[Population]]/Table1[[#This Row],[Area sq km]] -> 59.15018781 | K18: =1-(Table1[[#This Row],[Pop / km]]/MAX(Table1[Pop / km])*0.5+0.5) -> 0.4246425784
D19: Missouri | E19: 0.4 | F19: 6021988 | G19: =1-(Table1[[#This Row],[Population]]/MAX(Table1[Population])*0.5+0.5) -> 0.4208496105 | H19: 180532 | I19: =1-(Table1[[#This Row],[Area sq km]]/MAX(Table1[Area sq km])*0.5+0.5) -> 0.4474542074 | J19: =Table1[[#This Row],[Population]]/Table1[[#This Row],[Area sq km]] -> 33.35690072 | K19: =1-(Table1[[#This Row],[Pop / km]]/MAX(Table1[Pop / km])*0.5+0.5) -> 0.4575032621
D20: Maryland | E20: 0.4 | F20: 5884563 | G20: =1-(Table1[[#This Row],[Population]]/MAX(Table1[Population])*0.5+0.5) -> 0.4226558649 | H20: 32134 | I20: =1-(Table1[[#This Row],[Area sq km]]/MAX(Table1[Area sq km])*0.5+0.5) -> 0.4906470515 | J20: =Table1[[#This Row],[Population]]/Table1[[#This Row],[Area sq km]] -> 183.1257547 | K20: =1-(Table1[[#This Row],[Pop / km]]/MAX(Table1[Pop / km])*0.5+0.5) -> 0.2666975337
D21: Wisconsin | E21: 0.4 | F21: 5726398 | G21: =1-(Table1[[#This Row],[Population]]/MAX(Table1[Population])*0.5+0.5) -> 0.4247347169 | H21: 169639 | I21: =1-(Table1[[#This Row],[Area sq km]]/MAX(Table1[Area sq km])*0.5+0.5) -> 0.450624733 | J21: =Table1[[#This Row],[Population]]/Table1[[#This Row],[Area sq km]] -> 33.75637678 | K21: =1-(Table1[[#This Row],[Pop / km]]/MAX(Table1[Pop / km])*0.5+0.5) -> 0.456994329
D22: Minnesota | E22: 0.4 | F22: 5379139 | G22: =1-(Table1[[#This Row],[Population]]/MAX(Table1[Population])*0.5+0.5) -> 0.429298938 | H22: 225171 | I22: =1-(Table1[[#This Row],[Area sq km]]/MAX(Table1[Area sq km])*0.5+0.5) -> 0.4344615433 | J22: =Table1[[#This Row],[Population]]/Table1[[#This Row],[Area sq km]] -> 23.88912871 | K22: =1-(Table1[[#This Row],[Pop / km]]/MAX(Table1[Pop / km])*0.5+0.5) -> 0.4695652168
D23: Colorado | E23: 0.4 | F23: 5187582 | G23: =1-(Table1[[#This Row],[Population]]/MAX(Table1[Population])*0.5+0.5) -> 0.4318166799 | H23: 269600 | I23: =1-(Table1[[#This Row],[Area sq km]]/MAX(Table1[Area sq km])*0.5+0.5) -> 0.421530002 | J23: =Table1[[#This Row],[Population]]/Table1[[#This Row],[Area sq km]] -> 19.241773 | K23: =1-(Table1[[#This Row],[Pop / km]]/MAX(Table1[Pop / km])*0.5+0.5) -> 0.4754859544
D24: Alabama | E24: 0.4 | F24: 4822023 | G24: =1-(Table1[[#This Row],[Population]]/MAX(Table1[Population])*0.5+0.5) -> 0.4366214283 | H24: 135765 | I24: =1-(Table1[[#This Row],[Area sq km]]/MAX(Table1[Area sq km])*0.5+0.5) -> 0.4604841273 | J24: =Table1[[#This Row],[Population]]/Table1[[#This Row],[Area sq km]] -> 35.51742349 | K24: =1-(Table1[[#This Row],[Pop / km]]/MAX(Table1[Pop / km])*0.5+0.5) -> 0.454750753
D25: South Carolina | E25: 0.4 | F25: 4723723 | G25: =1-(Table1[[#This Row],[Population]]/MAX(Table1[Population])*0.5+0.5) -> 0.4379134407 | H25: 82931 | I25: =1-(Table1[[#This Row],[Area sq km]]/MAX(Table1[Area sq km])*0.5+0.5) -> 0.4758620348 | J25: =Table1[[#This Row],[Population]]/Table1[[#This Row],[Area sq km]] -> 56.95967732 | K25: =1-(Table1[[#This Row],[Pop / km]]/MAX(Table1[Pop / km])*0.5+0.5) -> 0.4274332918
D26: Louisiana | E26: 0.4 | F26: 4601893 | G26: =1-(Table1[[#This Row],[Population]]/MAX(Table1[Population])*0.5+0.5) -> 0.4395147212 | H26: 134265 | I26: =1-(Table1[[#This Row],[Area sq km]]/MAX(Table1[Area sq km])*0.5+0.5) -> 0.4609207185 | J26: =Table1[[#This Row],[Population]]/Table1[[#This Row],[Area sq km]] -> 34.27470301 | K26: =1-(Table1[[#This Row],[Pop / km]]/MAX(Table1[Pop / km])*0.5+0.5) -> 0.4563339806
D27: Kentucky | E27: 0.4 | F27: 4380415 | G27: =1-(Table1[[#This Row],[Population]]/MAX(Table1[Population])*0.5+0.5) -> 0.4424257316 | H27: 104659 | I27: =1-(Table1[[#This Row],[Area sq km]]/MAX(Table1[Area sq km])*0.5+0.5) -> 0.4695378653 | J27: =Table1[[#This Row],[Population]]/Table1[[#This Row],[Area sq km]] -> 41.85416448 | K27: =1-(Table1[[#This Row],[Pop / km]]/MAX(Table1[Pop / km])*0.5+0.5) -> 0.4466777362
D28: Oregon | E28: 0.4 | F28: 3899353 | G28: =1-(Table1[[#This Row],[Population]]/MAX(Table1[Population])*0.5+0.5) -> 0.4487486012 | H28: 254803 | I28: =1-(Table1[[#This Row],[Area sq km]]/MAX(Table1[Area sq km])*0.5+0.5) -> 0.425836829 | J28: =Table1[[#This Row],[Population]]/Table1[[#This Row],[Area sq km]] -> 15.30340302 | K28: =1-(Table1[[#This Row],[Pop / km]]/MAX(Table1[Pop / km])*0.5+0.5) -> 0.4805034432
D29: Oklahoma | E29: 0.4 | F29: 3814820 | G29: =1-(Table1[[#This Row],[Population]]/MAX(Table1[Population])*0.5+0.5) -> 0.4498596662 | H29: 181035 | I29: =1-(Table1[[#This Row],[Area sq km]]/MAX(Table1[Area sq km])*0.5+0.5) -> 0.4473078038 | J29: =Table1[[#This Row],[Population]]/Table1[[#This Row],[Area sq km]] -> 21.07227884 | K29: =1-(Table1[[#This Row],[Pop / km]]/MAX(Table1[Pop / km])*0.5+0.5) -> 0.4731538874
D30: Connecticut | E30: 0.4 | F30: 3590347 | G30: =1-(Table1[[#This Row],[Population]]/MAX(Table1[Population])*0.5+0.5) -> 0.4528100416 | H30: 14356 | I30: =1-(Table1[[#This Row],[Area sq km]]/MAX(Table1[Area sq km])*0.5+0.5) -> 0.4958215308 | J30: =Table1[[#This Row],[Population]]/Table1[[#This Row],[Area sq km]] -> 250.0938284 | K30: =1-(Table1[[#This Row],[Pop / km]]/MAX(Table1[Pop / km])*0.5+0.5) -> 0.1813801145
D31: Iowa | E31: 0.4 | F31: 3074186 | G31: =1-(Table1[[#This Row],[Population]]/MAX(Table1[Population])*0.5+0.5) -> 0.4595942371 | H31: 145741 | I31: =1-(Table1[[#This Row],[Area sq km]]/MAX(Table1[Area sq km])*0.5+0.5) -> 0.4575805045 | J31: =Table1[[#This Row],[Population]]/Table1[[#This Row],[Area sq km]] -> 21.09348776 | K31: =1-(Table1[[#This Row],[Pop / km]]/MAX(Table1[Pop / km])*0.5+0.5) -> 0.4731268672
D32: Mississippi | E32: 0.4 | F32: 2984926 | G32: =1-(Table1[[#This Row],[Population]]/MAX(Table1[Population])*0.5+0.5) -> 0.4607674317 | H32: 125433 | I32: =1-(Table1[[#This Row],[Area sq km]]/MAX(Table1[Area sq km])*0.5+0.5) -> 0.4634913677 | J32: =Table1[[#This Row],[Population]]/Table1[[#This Row],[Area sq km]] -> 23.79697528 | K32: =1-(Table1[[#This Row],[Pop / km]]/MAX(Table1[Pop / km])*0.5+0.5) -> 0.4696826204
D33: Arkansas | E33: 0.4 | F33: 2949131 | G33: =1-(Table1[[#This Row],[Population]]/MAX(Table1[Population])*0.5+0.5) -> 0.4612379056 | H33: 137730 | I33: =1-(Table1[[#This Row],[Area sq km]]/MAX(Table1[Area sq km])*0.5+0.5) -> 0.4599121928 | J33: =Table1[[#This Row],[Population]]/Table1[[#This Row],[Area sq km]] -> 21.41240834 | K33: =1-(Table1[[#This Row],[Pop / km]]/MAX(Table1[Pop / km])*0.5+0.5) -> 0.472720562
D34: Kansas | E34: 0.4 | F34: 2885905 | G34: =1-(Table1[[#This Row],[Population]]/MAX(Table1[Population])*0.5+0.5) -> 0.4620689206 | H34: 213096 | I34: =1-(Table1[[#This Row],[Area sq km]]/MAX(Table1[Area sq km])*0.5+0.5) -> 0.4379761027 | J34: =Table1[[#This Row],[Population]]/Table1[[#This Row],[Area sq km]] -> 13.54274599 | K34: =1-(Table1[[#This Row],[Pop / km]]/MAX(Table1[Pop / km])*0.5+0.5) -> 0.4827465228
D35: Utah | E35: 0.4 | F35: 2855287 | G35: =1-(Table1[[#This Row],[Population]]/MAX(Table1[Population])*0.5+0.5) -> 0.4624713503 | H35: 219887 | I35: =1-(Table1[[#This Row],[Area sq km]]/MAX(Table1[Area sq km])*0.5+0.5) -> 0.4359995087 | J35: =Table1[[#This Row],[Population]]/Table1[[#This Row],[Area sq km]] -> 12.98524697 | K35: =1-(Table1[[#This Row],[Pop / km]]/MAX(Table1[Pop / km])*0.5+0.5) -> 0.4834567773
D36: Nevada | E36: 0.4 | F36: 2758931 | G36: =1-(Table1[[#This Row],[Population]]/MAX(Table1[Population])*0.5+0.5) -> 0.4637378116 | H36: 286352 | I36: =1-(Table1[[#This Row],[Area sq km]]/MAX(Table1[Area sq km])*0.5+0.5) -> 0.4166541511 | J36: =Table1[[#This Row],[Population]]/Table1[[#This Row],[Area sq km]] -> 9.63475373 | K36: =1-(Table1[[#This Row],[Pop / km]]/MAX(Table1[Pop / km])*0.5+0.5) -> 0.4877253103
D37: New Mexico | E37: 0.4 | F37: 2085538 | G37: =1-(Table1[[#This Row],[Population]]/MAX(Table1[Population])*0.5+0.5) -> 0.4725885962 | H37: 314914 | I37: =1-(Table1[[#This Row],[Area sq km]]/MAX(Table1[Area sq km])*0.5+0.5) -> 0.4083408718 | J37: =Table1[[#This Row],[Population]]/Table1[[#This Row],[Area sq km]] -> 6.622563621 | K37: =1-(Table1[[#This Row],[Pop / km]]/MAX(Table1[Pop / km])*0.5+0.5) -> 0.4915628447
D38: Nebraska | E38: 0.4 | F38: 1855525 | G38: =1-(Table1[[#This Row],[Population]]/MAX(Table1[Population])*0.5+0.5) -> 0.4756117869 | H38: 200346 | I38: =1-(Table1[[#This Row],[Area sq km]]/MAX(Table1[Area sq km])*0.5+0.5) -> 0.4416871282 | J38: =Table1[[#This Row],[Population]]/Table1[[#This Row],[Area sq km]] -> 9.261602428 | K38: =1-(Table1[[#This Row],[Pop / km]]/MAX(Table1[Pop / km])*0.5+0.5) -> 0.4882007056
D39: West Virginia | E39: 0.4 | F39: 1855413 | G39: =1-(Table1[[#This Row],[Population]]/MAX(Table1[Population])*0.5+0.5) -> 0.475613259 | H39: 62755 | I39: =1-(Table1[[#This Row],[Area sq km]]/MAX(Table1[Area sq km])*0.5+0.5) -> 0.481734478 | J39: =Table1[[#This Row],[Population]]/Table1[[#This Row],[Area sq km]] -> 29.56597881 | K39: =1-(Table1[[#This Row],[Pop / km]]/MAX(Table1[Pop / km])*0.5+0.5) -> 0.4623329018
D40: Idaho | E40: 0.4 | F40: 1595728 | G40: =1-(Table1[[#This Row],[Population]]/MAX(Table1[Population])*0.5+0.5) -> 0.4790264456 | H40: 216445 | I40: =1-(Table1[[#This Row],[Area sq km]]/MAX(Table1[Area sq km])*0.5+0.5) -> 0.43700134 | J40: =Table1[[#This Row],[Population]]/Table1[[#This Row],[Area sq km]] -> 7.372441036 | K40: =1-(Table1[[#This Row],[Pop / km]]/MAX(Table1[Pop / km])*0.5+0.5) -> 0.4906074999
D41: Hawaii | E41: 0.4 | F41: 1392313 | G41: =1-(Table1[[#This Row],[Population]]/MAX(Table1[Population])*0.5+0.5) -> 0.4817000439 | H41: 28311 | I41: =1-(Table1[[#This Row],[Area sq km]]/MAX(Table1[Area sq km])*0.5+0.5) -> 0.491759777 | J41: =Table1[[#This Row],[Population]]/Table1[[#This Row],[Area sq km]] -> 49.17922362 | K41: =1-(Table1[[#This Row],[Pop / km]]/MAX(Table1[Pop / km])*0.5+0.5) -> 0.4373456006
D42: Maine | E42: 0.4 | F42: 1329192 | G42: =1-(Table1[[#This Row],[Population]]/MAX(Table1[Population])*0.5+0.5) -> 0.4825296788 | H42: 91647 | I42: =1-(Table1[[#This Row],[Area sq km]]/MAX(Table1[Area sq km])*0.5+0.5) -> 0.4733251487 | J42: =Table1[[#This Row],[Population]]/Table1[[#This Row],[Area sq km]] -> 14.503388 | K42: =1-(Table1[[#This Row],[Pop / km]]/MAX(Table1[Pop / km])*0.5+0.5) -> 0.4815226635
D43: New Hampshire | E43: 0.4 | F43: 1320718 | G43: =1-(Table1[[#This Row],[Population]]/MAX(Table1[Population])*0.5+0.5) -> 0.4826410574 | H43: 24216 | I43: =1-(Table1[[#This Row],[Area sq km]]/MAX(Table1[Area sq km])*0.5+0.5) -> 0.4929516711 | J43: =Table1[[#This Row],[Population]]/Table1[[#This Row],[Area sq km]] -> 54.53906508 | K43: =1-(Table1[[#This Row],[Pop / km]]/MAX(Table1[Pop / km])*0.5+0.5) -> 0.4305171552
D44: Montana | E44: 0.4 | F44: 1005141 | G44: =1-(Table1[[#This Row],[Population]]/MAX(Table1[Population])*0.5+0.5) -> 0.4867888641 | H44: 380837 | I44: =1-(Table1[[#This Row],[Area sq km]]/MAX(Table1[Area sq km])*0.5+0.5) -> 0.3891532691 | J44: =Table1[[#This Row],[Population]]/Table1[[#This Row],[Area sq km]] -> 2.639294501 | K44: =1-(Table1[[#This Row],[Pop / km]]/MAX(Table1[Pop / km])*0.5+0.5) -> 0.4966375351
D45: Delaware | E45: 0.4 | F45: 917092 | G45: =1-(Table1[[#This Row],[Population]]/MAX(Table1[Population])*0.5+0.5) -> 0.4879461419 | H45: 6446 | I45: =1-(Table1[[#This Row],[Area sq km]]/MAX(Table1[Area sq km])*0.5+0.5) -> 0.4981238219 | J45: =Table1[[#This Row],[Population]]/Table1[[#This Row],[Area sq km]] -> 142.2730375 | K45: =1-(Table1[[#This Row],[Pop / km]]/MAX(Table1[Pop / km])*0.5+0.5) -> 0.3187439521
D46: South Dakota | E46: 0.4 | F46: 833354 | G46: =1-(Table1[[#This Row],[Population]]/MAX(Table1[Population])*0.5+0.5) -> 0.4890467577 | H46: 199730 | I46: =1-(Table1[[#This Row],[Area sq km]]/MAX(Table1[Area sq km])*0.5+0.5) -> 0.4418664217 | J46: =Table1[[#This Row],[Population]]/Table1[[#This Row],[Area sq km]] -> 4.172402744 | K46: =1-(Table1[[#This Row],[Pop / km]]/MAX(Table1[Pop / km])*0.5+0.5) -> 0.4946843531
D47: Alaska | E47: 0.4 | F47: 731449 | G47: =1-(Table1[[#This Row],[Population]]/MAX(Table1[Population])*0.5+0.5) -> 0.4903861527 | H47: 1717854 | I47: =1-(Table1[[#This Row],[Area sq km]]/MAX(Table1[Area sq km])*0.5+0.5) -> 0 | J47: =Table1[[#This Row],[Population]]/Table1[[#This Row],[Area sq km]] -> 0.4257922967 | K47: =1-(Table1[[#This Row],[Pop / km]]/MAX(Table1[Pop / km])*0.5+0.5) -> 0.49945754
D48: North Dakota | E48: 0.4 | F48: 699628 | G48: =1-(Table1[[#This Row],[Population]]/MAX(Table1[Population])*0.5+0.5) -> 0.4908043941 | H48: 183112 | I48: =1-(Table1[[#This Row],[Area sq km]]/MAX(Table1[Area sq km])*0.5+0.5) -> 0.4467032705 | J48: =Table1[[#This Row],[Population]]/Table1[[#This Row],[Area sq km]] -> 3.820765433 | K48: =1-(Table1[[#This Row],[Pop / km]]/MAX(Table1[Pop / km])*0.5+0.5) -> 0.4951323395
D49: Vermont | E49: 0.4 | F49: 626011 | G49: =1-(Table1[[#This Row],[Population]]/MAX(Table1[Population])*0.5+0.5) -> 0.4917719839 | H49: 24900 | I49: =1-(Table1[[#This Row],[Area sq km]]/MAX(Table1[Area sq km])*0.5+0.5) -> 0.4927525855 | J49: =Table1[[#This Row],[Population]]/Table1[[#This Row],[Area sq km]] -> 25.14100402 | K49: =1-(Table1[[#This Row],[Pop / km]]/MAX(Table1[Pop / km])*0.5+0.5) -> 0.4679703259
D50: Wyoming | E50: 0.4 | F50: 576412 | G50: =1-(Table1[[#This Row],[Population]]/MAX(Table1[Population])*0.5+0.5) -> 0.4924238915 | H50: 253334 | I50: =1-(Table1[[#This Row],[Area sq km]]/MAX(Table1[Area sq km])*0.5+0.5) -> 0.4262643973 | J50: =Table1[[#This Row],[Population]]/Table1[[#This Row],[Area sq km]] -> 2.275304539 | K50: =1-(Table1[[#This Row],[Pop / km]]/MAX(Table1[Pop / km])*0.5+0.5) -> 0.4971012589
